[Event "Titled Tuesday Blitz June 6 Early 2023"]
[White "Sjugirov, Sanan"]
[Black "Bas Mas, Jose Joaquin"]
[WhiteFideId "4189302"]
[BlackFideId "22219064"]
[WhiteElo "2569"]
[BlackElo "2212"]
[Result "1-0"]
[Round "1"]
[TimeControl "180+2"]
[Date "2023.06.06"]
[WhiteClock "0:00:04"]
[BlackClock "0:00:14"]
[Board "16"]

1. e4 {[%clk 0:03:00]}  e6 {[%clk 0:02:59]} 2. d4 {[%clk 0:03:00]}  d5 {[%clk 0:03:00]} 3. Nc3 {[%clk 0:02:59]}  Nf6 {[%clk 0:03:00]} 4. e5 {[%clk 0:02:59]}  Nfd7 {[%clk 0:03:00]} 5. f4 {[%clk 0:03:00]}  c5 {[%clk 0:03:00]} 6. Nf3 {[%clk 0:03:01]}  Nc6 {[%clk 0:03:01]} 7. Be3 {[%clk 0:03:01]}  Be7 {[%clk 0:03:01]} 8. Qd2 {[%clk 0:02:59]}  O-O {[%clk 0:03:01]} 9. Be2 {[%clk 0:02:52]}  a6 {[%clk 0:02:57]} 10. O-O {[%clk 0:02:49]}  Qc7 {[%clk 0:02:45]} 11. Nd1 {[%clk 0:02:45]}  cxd4 {[%clk 0:02:32]} 12. Nxd4 {[%clk 0:02:46]}  Nc5 {[%clk 0:02:21]} 13. Nf2 {[%clk 0:02:42]}  Bd7 {[%clk 0:02:01]} 14. c3 {[%clk 0:02:41]}  f6 {[%clk 0:01:54]} 15. exf6 {[%clk 0:02:38]}  Rxf6 {[%clk 0:01:52]} 16. Nxc6 {[%clk 0:02:25]}  Bxc6 {[%clk 0:01:48]} 17. Ng4 {[%clk 0:02:23]}  Rff8 {[%clk 0:01:45]} 18. Ne5 {[%clk 0:02:20]}  Ne4 {[%clk 0:01:34]} 19. Qc2 {[%clk 0:02:18]}  Bc5 {[%clk 0:01:25]} 20. Bxc5 {[%clk 0:02:14]}  Nxc5 {[%clk 0:01:25]} 21. Kh1 {[%clk 0:02:08]}  Be8 {[%clk 0:01:23]} 22. Rae1 {[%clk 0:01:56]}  Rc8 {[%clk 0:01:23]} 23. Qd1 {[%clk 0:01:30]}  Bb5 {[%clk 0:01:21]} 24. Bxb5 {[%clk 0:01:22]}  axb5 {[%clk 0:01:20]} 25. Qd4 {[%clk 0:01:17]}  Ne4 {[%clk 0:01:17]} 26. Nd3 {[%clk 0:01:15]}  Qc4 {[%clk 0:01:13]} 27. Qe3 {[%clk 0:01:01]}  Rc7 {[%clk 0:00:58]} 28. a3 {[%clk 0:00:58]}  Qc6 {[%clk 0:00:47]} 29. Nf2 {[%clk 0:00:49]}  Nxf2+ {[%clk 0:00:46]} 30. Rxf2 {[%clk 0:00:50]}  Rcf7 {[%clk 0:00:46]} 31. Kg1 {[%clk 0:00:24]}  Rf6 {[%clk 0:00:45]} 32. Qe5 {[%clk 0:00:16]}  Qc4 {[%clk 0:00:43]} 33. g3 {[%clk 0:00:16]}  Qd3 {[%clk 0:00:38]} 34. Qe2 {[%clk 0:00:13]}  Qxe2 {[%clk 0:00:37]} 35. Rfxe2 {[%clk 0:00:14]}  Kf7 {[%clk 0:00:36]} 36. Rd1 {[%clk 0:00:14]}  Rc8 {[%clk 0:00:34]} 37. Kg2 {[%clk 0:00:14]}  h5 {[%clk 0:00:33]} 38. h4 {[%clk 0:00:13]}  Rc4 {[%clk 0:00:29]} 39. Kf3 {[%clk 0:00:12]}  g6 {[%clk 0:00:29]} 40. Ke3 {[%clk 0:00:10]}  Rf5 {[%clk 0:00:22]} 41. Kd3 {[%clk 0:00:10]}  Kf6 {[%clk 0:00:20]} 42. Rde1 {[%clk 0:00:10]}  Re4 {[%clk 0:00:16]} 43. Rxe4 {[%clk 0:00:10]}  dxe4+ {[%clk 0:00:17]} 44. Rxe4 {[%clk 0:00:11]}  Rd5+ {[%clk 0:00:17]} 45. Rd4 {[%clk 0:00:11]}  Kf5 {[%clk 0:00:16]} 46. Rxd5+ {[%clk 0:00:08]}  exd5 {[%clk 0:00:17]} 47. Ke3 {[%clk 0:00:06]}  Kg4 {[%clk 0:00:17]} 48. Kf2 {[%clk 0:00:07]}  b6 {[%clk 0:00:16]} 49. Kg2 {[%clk 0:00:06]}  Kf5 {[%clk 0:00:16]} 50. Kf3 {[%clk 0:00:06]}  Kf6 {[%clk 0:00:16]} 51. g4 {[%clk 0:00:04]}  Ke6 {[%clk 0:00:15]} 52. f5+ {[%clk 0:00:03]}  Kf6 {[%clk 0:00:16]} 53. fxg6 {[%clk 0:00:03]}  hxg4+ {[%clk 0:00:13]} 54. Kxg4 {[%clk 0:00:04]}  Kxg6 {[%clk 0:00:14]} 55. Kf4 {[%clk 0:00:04]}  Kh5 {[%clk 0:00:14]} 56. Ke5 {[%clk 0:00:04]} 1-0


[Site "https://www.chess.com"]

[Event "Titled Tuesday Blitz June 6 Early 2023"]
[White "feuervogel1000000"]
[Black "Svane, Rasmus"]
[BlackFideId "4657101"]
[WhiteElo "2496"]
[BlackElo "2601"]
[Result "1/2-1/2"]
[Round "1"]
[TimeControl "180+2"]
[Date "2023.06.06"]
[WhiteClock "0:00:13"]
[BlackClock "0:00:10"]
[Board "17"]

1. d4 {[%clk 0:02:59]}  d5 {[%clk 0:02:59]} 2. c4 {[%clk 0:02:59]}  e6 {[%clk 0:03:00]} 3. Nf3 {[%clk 0:02:58]}  a6 {[%clk 0:02:59]} 4. Nc3 {[%clk 0:02:58]}  Nf6 {[%clk 0:03:00]} 5. cxd5 {[%clk 0:02:55]}  exd5 {[%clk 0:03:01]} 6. Bf4 {[%clk 0:02:55]}  Bd6 {[%clk 0:03:01]} 7. Bxd6 {[%clk 0:02:54]}  Qxd6 {[%clk 0:03:01]} 8. e3 {[%clk 0:02:54]}  Bg4 {[%clk 0:03:02]} 9. Be2 {[%clk 0:02:54]}  Nbd7 {[%clk 0:02:59]} 10. O-O {[%clk 0:02:54]}  O-O {[%clk 0:02:59]} 11. Rc1 {[%clk 0:02:54]}  c6 {[%clk 0:02:59]} 12. a3 {[%clk 0:02:54]}  Rfe8 {[%clk 0:02:59]} 13. b4 {[%clk 0:02:54]}  a5 {[%clk 0:02:57]} 14. Qb3 {[%clk 0:02:52]}  b5 {[%clk 0:02:57]} 15. Rc2 {[%clk 0:02:38]}  Bxf3 {[%clk 0:02:56]} 16. Bxf3 {[%clk 0:02:38]}  Nb6 {[%clk 0:02:57]} 17. Ne2 {[%clk 0:02:27]}  Nc4 {[%clk 0:02:55]} 18. Rc3 {[%clk 0:02:16]}  axb4 {[%clk 0:02:41]} 19. Qxb4 {[%clk 0:02:14]}  Qe7 {[%clk 0:02:33]} 20. Nf4 {[%clk 0:02:10]}  Rxa3 {[%clk 0:02:25]} 21. Qxe7 {[%clk 0:02:09]}  Rxe7 {[%clk 0:02:26]} 22. Rxa3 {[%clk 0:02:10]}  Nxa3 {[%clk 0:02:27]} 23. Ra1 {[%clk 0:02:10]}  Nc4 {[%clk 0:02:23]} 24. Nd3 {[%clk 0:02:07]}  Kf8 {[%clk 0:01:38]} 25. Nb4 {[%clk 0:02:05]}  Re6 {[%clk 0:01:38]} 26. Ra6 {[%clk 0:02:00]}  Ke7 {[%clk 0:01:29]} 27. Nxc6+ {[%clk 0:01:29]}  Kd7 {[%clk 0:01:29]} 28. Nb4 {[%clk 0:01:26]}  Rxa6 {[%clk 0:01:28]} 29. Nxa6 {[%clk 0:01:27]}  Kd6 {[%clk 0:01:21]} 30. Kf1 {[%clk 0:01:18]}  Na5 {[%clk 0:01:08]} 31. Be2 {[%clk 0:01:15]}  Kc6 {[%clk 0:01:07]} 32. Nb4+ {[%clk 0:01:14]}  Kd6 {[%clk 0:00:47]} 33. Bxb5 {[%clk 0:01:02]}  Nb7 {[%clk 0:00:47]} 34. f3 {[%clk 0:00:59]}  Nd8 {[%clk 0:00:47]} 35. Kf2 {[%clk 0:00:58]}  Ne6 {[%clk 0:00:48]} 36. Nd3 {[%clk 0:00:57]}  Ng8 {[%clk 0:00:46]} 37. Ne5 {[%clk 0:00:57]}  f6 {[%clk 0:00:45]} 38. Nd3 {[%clk 0:00:57]}  Ne7 {[%clk 0:00:45]} 39. h4 {[%clk 0:00:54]}  Nc8 {[%clk 0:00:42]} 40. h5 {[%clk 0:00:53]}  g5 {[%clk 0:00:40]} 41. hxg6 {[%clk 0:00:52]}  hxg6 {[%clk 0:00:41]} 42. g4 {[%clk 0:00:51]}  g5 {[%clk 0:00:41]} 43. Nc1 {[%clk 0:00:49]}  Ne7 {[%clk 0:00:40]} 44. Ne2 {[%clk 0:00:47]}  f5 {[%clk 0:00:38]} 45. gxf5 {[%clk 0:00:48]}  Nxf5 {[%clk 0:00:39]} 46. Bd3 {[%clk 0:00:49]}  Ne7 {[%clk 0:00:37]} 47. Kg3 {[%clk 0:00:49]}  Ng8 {[%clk 0:00:35]} 48. Kg4 {[%clk 0:00:46]}  Ke7 {[%clk 0:00:35]} 49. Ng3 {[%clk 0:00:43]}  Kf6 {[%clk 0:00:20]} 50. Nh5+ {[%clk 0:00:40]}  Ke7 {[%clk 0:00:20]} 51. Kf5 {[%clk 0:00:37]}  Nh6+ {[%clk 0:00:20]} 52. Kg6 {[%clk 0:00:37]}  Nf7 {[%clk 0:00:19]} 53. Bf5 {[%clk 0:00:33]}  Nf8+ {[%clk 0:00:17]} 54. Kg7 {[%clk 0:00:32]}  Nd6 {[%clk 0:00:18]} 55. Bg4 {[%clk 0:00:30]}  Nc4 {[%clk 0:00:14]} 56. e4 {[%clk 0:00:30]}  Ne3 {[%clk 0:00:14]} 57. exd5 {[%clk 0:00:15]}  Nxd5 {[%clk 0:00:14]} 58. Ng3 {[%clk 0:00:13]}  Ne6+ {[%clk 0:00:10]} 59. Kh6 {[%clk 0:00:13]}  Nxd4 {[%clk 0:00:09]} 60. Kxg5 {[%clk 0:00:12]}  Ne3 {[%clk 0:00:09]} 61. Kf4 {[%clk 0:00:11]}  Nxg4 {[%clk 0:00:08]} 62. fxg4 {[%clk 0:00:12]}  Kf6 {[%clk 0:00:08]} 63. Ne4+ {[%clk 0:00:13]}  Kg6 {[%clk 0:00:09]} 64. g5 {[%clk 0:00:13]}  Ne6+ {[%clk 0:00:09]} 65. Ke5 {[%clk 0:00:13]}  Nxg5 {[%clk 0:00:10]} 1/2-1/2


[Site "https://www.chess.com"]

[Event "Titled Tuesday Blitz June 6 Early 2023"]
[White "Deac, Bogdan-Daniel"]
[Black "Tifferet, Shaked"]
[WhiteFideId "1226380"]
[BlackFideId "2811529"]
[WhiteElo "2644"]
[BlackElo "2142"]
[Result "1-0"]
[Round "1"]
[TimeControl "180+2"]
[Date "2023.06.06"]
[WhiteClock "0:00:06"]
[BlackClock "0:00:01"]
[Board "18"]

1. b3 {[%clk 0:03:00]}  Nf6 {[%clk 0:02:57]} 2. Bb2 {[%clk 0:03:01]}  g6 {[%clk 0:02:58]} 3. g3 {[%clk 0:03:01]}  Bg7 {[%clk 0:02:58]} 4. Bg2 {[%clk 0:03:02]}  O-O {[%clk 0:02:59]} 5. Nf3 {[%clk 0:03:03]}  b6 {[%clk 0:02:59]} 6. Ne5 {[%clk 0:02:59]}  c6 {[%clk 0:02:59]} 7. c4 {[%clk 0:02:58]}  d5 {[%clk 0:02:57]} 8. d4 {[%clk 0:02:55]}  Ng4 {[%clk 0:02:50]} 9. cxd5 {[%clk 0:02:44]}  cxd5 {[%clk 0:02:48]} 10. Nc3 {[%clk 0:02:44]}  Nxe5 {[%clk 0:02:42]} 11. dxe5 {[%clk 0:02:42]}  e6 {[%clk 0:02:21]} 12. Nxd5 {[%clk 0:02:37]}  exd5 {[%clk 0:02:19]} 13. Bxd5 {[%clk 0:02:10]}  Bh3 {[%clk 0:01:53]} 14. Bxa8 {[%clk 0:01:59]}  Qe7 {[%clk 0:01:44]} 15. f4 {[%clk 0:01:13]}  Rd8 {[%clk 0:01:29]} 16. Qc1 {[%clk 0:01:12]}  Na6 {[%clk 0:01:22]} 17. Bf3 {[%clk 0:00:54]}  Rc8 {[%clk 0:01:08]} 18. Qd2 {[%clk 0:00:50]}  Rd8 {[%clk 0:01:05]} 19. Qe3 {[%clk 0:00:38]}  Nb4 {[%clk 0:00:48]} 20. Rc1 {[%clk 0:00:38]}  Nxa2 {[%clk 0:00:45]} 21. Rd1 {[%clk 0:00:36]}  Rxd1+ {[%clk 0:00:36]} 22. Kxd1 {[%clk 0:00:36]}  Qb4 {[%clk 0:00:19]} 23. Bd5 {[%clk 0:00:31]}  h5 {[%clk 0:00:18]} 24. Qd4 {[%clk 0:00:28]}  Qa5 {[%clk 0:00:17]} 25. Bc4 {[%clk 0:00:17]}  Nb4 {[%clk 0:00:11]} 26. Bc3 {[%clk 0:00:16]}  Qa3 {[%clk 0:00:07]} 27. Bxb4 {[%clk 0:00:14]}  Qa2 {[%clk 0:00:05]} 28. Bd2 {[%clk 0:00:08]}  Qb1+ {[%clk 0:00:03]} 29. Bc1 {[%clk 0:00:08]}  Bf5 {[%clk 0:00:04]} 30. Bd3 {[%clk 0:00:07]}  Qxb3+ {[%clk 0:00:04]} 31. Ke1 {[%clk 0:00:07]}  Bh3 {[%clk 0:00:04]} 32. Be3 {[%clk 0:00:06]}  Qa2 {[%clk 0:00:04]} 33. Kf2 {[%clk 0:00:06]}  Qa5 {[%clk 0:00:03]} 34. Ra1 {[%clk 0:00:06]}  Qc5 {[%clk 0:00:01]} 35. Qxc5 {[%clk 0:00:06]} 1-0


[Site "https://www.chess.com"]

[Event "Titled Tuesday Blitz June 6 Early 2023"]
[White "Srebrnic, Marko"]
[Black "Zhigalko, Sergei"]
[WhiteFideId "14603616"]
[BlackFideId "13502956"]
[WhiteElo "2341"]
[BlackElo "2626"]
[Result "1/2-1/2"]
[Round "1"]
[TimeControl "180+2"]
[Date "2023.06.06"]
[WhiteClock "0:00:26"]
[BlackClock "0:00:03"]
[Board "21"]

1. e4 {[%clk 0:03:00]}  c5 {[%clk 0:03:00]} 2. Nf3 {[%clk 0:02:59]}  Nc6 {[%clk 0:03:00]} 3. g3 {[%clk 0:03:00]}  Nf6 {[%clk 0:02:59]} 4. Qe2 {[%clk 0:02:59]}  e5 {[%clk 0:02:58]} 5. c3 {[%clk 0:02:57]}  Be7 {[%clk 0:02:49]} 6. Bg2 {[%clk 0:02:57]}  O-O {[%clk 0:02:49]} 7. O-O {[%clk 0:02:57]}  Re8 {[%clk 0:02:50]} 8. Na3 {[%clk 0:02:56]}  d5 {[%clk 0:02:32]} 9. d3 {[%clk 0:02:54]}  h6 {[%clk 0:02:25]} 10. Rd1 {[%clk 0:02:53]}  Bf8 {[%clk 0:02:25]} 11. Nh4 {[%clk 0:02:46]}  Bg4 {[%clk 0:02:22]} 12. Bf3 {[%clk 0:02:42]}  Be6 {[%clk 0:02:22]} 13. Be3 {[%clk 0:02:28]}  Qd7 {[%clk 0:02:21]} 14. Qf1 {[%clk 0:02:00]}  Rad8 {[%clk 0:02:18]} 15. exd5 {[%clk 0:01:50]}  Nxd5 {[%clk 0:02:17]} 16. Nc4 {[%clk 0:01:44]}  b5 {[%clk 0:02:11]} 17. Nd2 {[%clk 0:01:34]}  Nxe3 {[%clk 0:01:41]} 18. fxe3 {[%clk 0:01:34]}  Ne7 {[%clk 0:01:42]} 19. Ne4 {[%clk 0:01:28]}  Nd5 {[%clk 0:01:42]} 20. Qe2 {[%clk 0:01:18]}  Be7 {[%clk 0:01:34]} 21. Ng2 {[%clk 0:01:10]}  Qc7 {[%clk 0:01:06]} 22. g4 {[%clk 0:01:02]}  c4 {[%clk 0:00:52]} 23. dxc4 {[%clk 0:00:59]}  bxc4 {[%clk 0:00:53]} 24. h3 {[%clk 0:00:57]}  Qb6 {[%clk 0:00:50]} 25. Kh1 {[%clk 0:00:55]}  Nf6 {[%clk 0:00:34]} 26. Qc2 {[%clk 0:00:45]}  Nxe4 {[%clk 0:00:25]} 27. Bxe4 {[%clk 0:00:46]}  Bc5 {[%clk 0:00:25]} 28. Qe2 {[%clk 0:00:40]}  a5 {[%clk 0:00:22]} 29. Rf1 {[%clk 0:00:34]}  Rb8 {[%clk 0:00:14]} 30. Rab1 {[%clk 0:00:34]}  Red8 {[%clk 0:00:14]} 31. Qf2 {[%clk 0:00:31]}  Rd3 {[%clk 0:00:09]} 32. Rfe1 {[%clk 0:00:30]}  a4 {[%clk 0:00:05]} 33. a3 {[%clk 0:00:30]}  Qd6 {[%clk 0:00:05]} 34. Re2 {[%clk 0:00:30]}  Rd1+ {[%clk 0:00:04]} 35. Rxd1 {[%clk 0:00:31]}  Qxd1+ {[%clk 0:00:05]} 36. Kh2 {[%clk 0:00:31]}  Qd6 {[%clk 0:00:05]} 37. Nh4 {[%clk 0:00:30]}  Qb6 {[%clk 0:00:04]} 38. Nf5 {[%clk 0:00:30]}  Rd8 {[%clk 0:00:05]} 39. Ng3 {[%clk 0:00:27]}  Bf8 {[%clk 0:00:05]} 40. Qf3 {[%clk 0:00:27]}  Qd6 {[%clk 0:00:04]} 41. Bc2 {[%clk 0:00:27]}  Bd5 {[%clk 0:00:04]} 42. Be4 {[%clk 0:00:26]}  Be6 {[%clk 0:00:04]} 43. Bf5 {[%clk 0:00:26]}  Bd5 {[%clk 0:00:04]} 44. Be4 {[%clk 0:00:26]}  Be6 {[%clk 0:00:03]} 1/2-1/2


[Site "https://www.chess.com"]

[Event "Titled Tuesday Blitz June 6 Early 2023"]
[White "Xu, Daniel"]
[Black "Kevlishvili, Robby"]
[WhiteFideId "2627345"]
[BlackFideId "1040634"]
[WhiteElo "1980"]
[BlackElo "2572"]
[Result "1-0"]
[Round "1"]
[TimeControl "180+2"]
[Date "2023.06.06"]
[WhiteClock "0:00:06"]
[BlackClock "0:00:12"]
[Board "23"]

1. e4 {[%clk 0:03:00]}  c6 {[%clk 0:02:56]} 2. d4 {[%clk 0:03:00]}  d5 {[%clk 0:02:56]} 3. exd5 {[%clk 0:03:01]}  cxd5 {[%clk 0:02:57]} 4. c4 {[%clk 0:03:01]}  Nf6 {[%clk 0:02:57]} 5. Nc3 {[%clk 0:03:02]}  g6 {[%clk 0:02:57]} 6. Qb3 {[%clk 0:03:01]}  Bg7 {[%clk 0:02:51]} 7. cxd5 {[%clk 0:03:02]}  O-O {[%clk 0:02:51]} 8. Nge2 {[%clk 0:03:01]}  Nbd7 {[%clk 0:02:48]} 9. g3 {[%clk 0:03:01]}  Nb6 {[%clk 0:02:47]} 10. Bg2 {[%clk 0:03:00]}  Bg4 {[%clk 0:02:43]} 11. Nf4 {[%clk 0:02:48]}  Rc8 {[%clk 0:02:43]} 12. O-O {[%clk 0:02:43]}  Bf5 {[%clk 0:02:37]} 13. a4 {[%clk 0:02:24]}  Qd7 {[%clk 0:02:33]} 14. a5 {[%clk 0:02:06]}  Nc4 {[%clk 0:02:31]} 15. Re1 {[%clk 0:02:05]}  Nd6 {[%clk 0:02:25]} 16. Be3 {[%clk 0:01:38]}  g5 {[%clk 0:02:11]} 17. Nfe2 {[%clk 0:01:36]}  h6 {[%clk 0:02:12]} 18. Rec1 {[%clk 0:01:31]}  Bh3 {[%clk 0:02:11]} 19. Bf3 {[%clk 0:01:17]}  Qf5 {[%clk 0:02:10]} 20. Bh1 {[%clk 0:01:04]}  Ng4 {[%clk 0:02:09]} 21. Nd1 {[%clk 0:00:57]}  a6 {[%clk 0:01:52]} 22. Rc5 {[%clk 0:00:55]}  Nb5 {[%clk 0:01:42]} 23. Rac1 {[%clk 0:00:49]}  Rxc5 {[%clk 0:01:33]} 24. dxc5 {[%clk 0:00:46]}  Ne5 {[%clk 0:01:33]} 25. Nd4 {[%clk 0:00:31]}  Nxd4 {[%clk 0:01:28]} 26. Bxd4 {[%clk 0:00:32]}  Ng4 {[%clk 0:01:27]} 27. Bxg7 {[%clk 0:00:31]}  Kxg7 {[%clk 0:01:24]} 28. Qc3+ {[%clk 0:00:30]}  Kg8 {[%clk 0:01:24]} 29. Qd4 {[%clk 0:00:30]}  Rd8 {[%clk 0:01:22]} 30. Rc3 {[%clk 0:00:28]}  Qb1 {[%clk 0:01:17]} 31. Qd2 {[%clk 0:00:22]}  Nf6 {[%clk 0:01:12]} 32. Rc1 {[%clk 0:00:21]}  Qf5 {[%clk 0:01:06]} 33. Ne3 {[%clk 0:00:21]}  Qe5 {[%clk 0:01:06]} 34. Qc3 {[%clk 0:00:18]}  Qb8 {[%clk 0:01:02]} 35. c6 {[%clk 0:00:17]}  bxc6 {[%clk 0:01:00]} 36. dxc6 {[%clk 0:00:18]}  Qb5 {[%clk 0:00:56]} 37. c7 {[%clk 0:00:18]}  Rc8 {[%clk 0:00:56]} 38. Rd1 {[%clk 0:00:15]}  Qa4 {[%clk 0:00:38]} 39. Rd8+ {[%clk 0:00:13]}  Kg7 {[%clk 0:00:39]} 40. Bg2 {[%clk 0:00:07]}  Be6 {[%clk 0:00:28]} 41. Rxc8 {[%clk 0:00:07]}  Bxc8 {[%clk 0:00:29]} 42. h3 {[%clk 0:00:07]}  Qd7 {[%clk 0:00:26]} 43. Nd5 {[%clk 0:00:06]}  Qd6 {[%clk 0:00:22]} 44. Nb6 {[%clk 0:00:05]}  Be6 {[%clk 0:00:12]} 45. c8=Q {[%clk 0:00:05]}  Qd1+ {[%clk 0:00:12]} 46. Kh2 {[%clk 0:00:05]}  Bxc8 {[%clk 0:00:13]} 47. Nxc8 {[%clk 0:00:05]}  Qe2 {[%clk 0:00:13]} 48. Nxe7 {[%clk 0:00:05]}  Qxe7 {[%clk 0:00:13]} 49. Qc4 {[%clk 0:00:03]}  Qd6 {[%clk 0:00:13]} 50. b4 {[%clk 0:00:03]}  h5 {[%clk 0:00:13]} 51. Bf1 {[%clk 0:00:02]}  h4 {[%clk 0:00:12]} 52. Qxa6 {[%clk 0:00:02]}  hxg3+ {[%clk 0:00:13]} 53. fxg3 {[%clk 0:00:03]}  Qd2+ {[%clk 0:00:13]} 54. Bg2 {[%clk 0:00:03]}  Qxb4 {[%clk 0:00:12]} 55. Qb6 {[%clk 0:00:04]}  Qe1 {[%clk 0:00:11]} 56. a6 {[%clk 0:00:04]}  Qa1 {[%clk 0:00:11]} 57. a7 {[%clk 0:00:04]}  Nh5 {[%clk 0:00:11]} 58. a8=Q {[%clk 0:00:04]}  Qe5 {[%clk 0:00:11]} 59. Qb3 {[%clk 0:00:02]}  Nf6 {[%clk 0:00:10]} 60. Qaa3 {[%clk 0:00:02]}  g4 {[%clk 0:00:10]} 61. Qc3 {[%clk 0:00:03]}  Qh5 {[%clk 0:00:09]} 62. Qab2 {[%clk 0:00:02]}  Qg6 {[%clk 0:00:08]} 63. Qxf6+ {[%clk 0:00:03]}  Qxf6 {[%clk 0:00:08]} 64. Qxf6+ {[%clk 0:00:03]}  Kxf6 {[%clk 0:00:09]} 65. hxg4 {[%clk 0:00:04]}  Kg5 {[%clk 0:00:10]} 66. Bf3 {[%clk 0:00:04]}  Kg6 {[%clk 0:00:10]} 67. Kh3 {[%clk 0:00:04]}  Kf6 {[%clk 0:00:11]} 68. Kh4 {[%clk 0:00:05]}  Kg6 {[%clk 0:00:11]} 69. g5 {[%clk 0:00:05]}  Kf5 {[%clk 0:00:11]} 70. Kh5 {[%clk 0:00:06]}  Ke5 {[%clk 0:00:12]} 71. Kh6 {[%clk 0:00:05]}  Kf5 {[%clk 0:00:12]} 72. Bh5 {[%clk 0:00:06]}  f6 {[%clk 0:00:12]} 73. g6 {[%clk 0:00:06]} 1-0


[Site "https://www.chess.com"]

[Event "Titled Tuesday Blitz June 6 Early 2023"]
[White "Ibarra Jerez, Jose Carlos"]
[Black "Ismayil, Malak"]
[WhiteFideId "2226332"]
[BlackFideId "13412604"]
[WhiteElo "2631"]
[BlackElo "1868"]
[Result "1-0"]
[Round "1"]
[TimeControl "180+2"]
[Date "2023.06.06"]
[WhiteClock "0:00:15"]
[BlackClock "0:00:07"]
[Board "24"]

1. e4 {[%clk 0:02:55]}  e5 {[%clk 0:02:59]} 2. Nf3 {[%clk 0:02:55]}  Nc6 {[%clk 0:03:00]} 3. Bb5 {[%clk 0:02:54]}  a6 {[%clk 0:03:00]} 4. Bxc6 {[%clk 0:02:54]}  dxc6 {[%clk 0:03:00]} 5. O-O {[%clk 0:02:55]}  Bd6 {[%clk 0:03:00]} 6. d4 {[%clk 0:02:55]}  Qe7 {[%clk 0:03:00]} 7. dxe5 {[%clk 0:02:54]}  Bxe5 {[%clk 0:03:00]} 8. Nxe5 {[%clk 0:02:55]}  Qxe5 {[%clk 0:02:59]} 9. Nc3 {[%clk 0:02:46]}  Nf6 {[%clk 0:02:59]} 10. f4 {[%clk 0:02:43]}  Qc5+ {[%clk 0:02:58]} 11. Kh1 {[%clk 0:02:43]}  Be6 {[%clk 0:02:41]} 12. Qe1 {[%clk 0:02:39]}  O-O-O {[%clk 0:02:28]} 13. f5 {[%clk 0:02:21]}  Bc4 {[%clk 0:02:16]} 14. Rf3 {[%clk 0:02:17]}  Rhe8 {[%clk 0:02:15]} 15. Be3 {[%clk 0:02:07]}  Qe5 {[%clk 0:01:27]} 16. b3 {[%clk 0:01:52]}  Bd5 {[%clk 0:01:25]} 17. exd5 {[%clk 0:01:49]}  Ng4 {[%clk 0:01:24]} 18. Rg3 {[%clk 0:00:50]}  Nxe3 {[%clk 0:01:20]} 19. dxc6 {[%clk 0:00:50]}  Nxf5 {[%clk 0:01:16]} 20. cxb7+ {[%clk 0:00:48]}  Kxb7 {[%clk 0:01:12]} 21. Qxe5 {[%clk 0:00:49]}  Rxe5 {[%clk 0:01:12]} 22. Rf3 {[%clk 0:00:50]}  f6 {[%clk 0:01:00]} 23. Raf1 {[%clk 0:00:47]}  Nd4 {[%clk 0:00:58]} 24. R3f2 {[%clk 0:00:47]}  Rc5 {[%clk 0:00:56]} 25. Na4 {[%clk 0:00:42]}  Rxc2 {[%clk 0:00:55]} 26. h3 {[%clk 0:00:39]}  Rxf2 {[%clk 0:00:46]} 27. Rxf2 {[%clk 0:00:40]}  Nc6 {[%clk 0:00:42]} 28. Nc5+ {[%clk 0:00:39]}  Kb6 {[%clk 0:00:42]} 29. Ne6 {[%clk 0:00:40]}  Rd7 {[%clk 0:00:42]} 30. Kh2 {[%clk 0:00:38]}  Re7 {[%clk 0:00:39]} 31. Nf4 {[%clk 0:00:38]}  Rd7 {[%clk 0:00:38]} 32. Ne6 {[%clk 0:00:33]}  Ne5 {[%clk 0:00:37]} 33. Rc2 {[%clk 0:00:31]}  g6 {[%clk 0:00:31]} 34. Nc5 {[%clk 0:00:30]}  Rd5 {[%clk 0:00:25]} 35. Na4+ {[%clk 0:00:29]}  Kb7 {[%clk 0:00:24]} 36. Nc5+ {[%clk 0:00:29]}  Kb6 {[%clk 0:00:24]} 37. Ne6 {[%clk 0:00:30]}  c6 {[%clk 0:00:22]} 38. b4 {[%clk 0:00:28]}  Rd6 {[%clk 0:00:18]} 39. Nc5 {[%clk 0:00:27]}  Rd5 {[%clk 0:00:15]} 40. Na4+ {[%clk 0:00:26]}  Kb5 {[%clk 0:00:14]} 41. Nc3+ {[%clk 0:00:25]}  Kxb4 {[%clk 0:00:14]} 42. Nxd5+ {[%clk 0:00:26]}  cxd5 {[%clk 0:00:15]} 43. Kg3 {[%clk 0:00:23]}  d4 {[%clk 0:00:15]} 44. Rc7 {[%clk 0:00:24]}  d3 {[%clk 0:00:15]} 45. Kf2 {[%clk 0:00:24]}  Nc4 {[%clk 0:00:14]} 46. Ke1 {[%clk 0:00:20]}  Kc3 {[%clk 0:00:12]} 47. Kd1 {[%clk 0:00:20]}  Kd4 {[%clk 0:00:12]} 48. Rxh7 {[%clk 0:00:19]}  Ne3+ {[%clk 0:00:12]} 49. Kd2 {[%clk 0:00:20]}  Nxg2 {[%clk 0:00:12]} 50. Rd7+ {[%clk 0:00:18]}  Ke4 {[%clk 0:00:12]} 51. Rxd3 {[%clk 0:00:18]}  Nf4 {[%clk 0:00:12]} 52. Ra3 {[%clk 0:00:19]}  Kf5 {[%clk 0:00:07]} 53. Ra5+ {[%clk 0:00:16]}  Ke4 {[%clk 0:00:06]} 54. Rxa6 {[%clk 0:00:16]}  Nxh3 {[%clk 0:00:05]} 55. Rxf6 {[%clk 0:00:17]}  g5 {[%clk 0:00:05]} 56. a4 {[%clk 0:00:17]}  Kd5 {[%clk 0:00:06]} 57. a5 {[%clk 0:00:17]}  Nf4 {[%clk 0:00:06]} 58. a6 {[%clk 0:00:15]}  Ne6 {[%clk 0:00:07]} 59. Rxe6 {[%clk 0:00:14]}  Kxe6 {[%clk 0:00:07]} 60. a7 {[%clk 0:00:15]} 1-0


[Site "https://www.chess.com"]

[Event "Titled Tuesday Blitz June 6 Early 2023"]
[White "Samadov, Read"]
[Black "Bettalli, Francesco"]
[WhiteFideId "13417444"]
[BlackFideId "2816453"]
[WhiteElo "2355"]
[BlackElo "2216"]
[Result "1-0"]
[Round "1"]
[TimeControl "180+2"]
[Date "2023.06.06"]
[WhiteClock "0:01:38"]
[BlackClock "0:01:32"]
[Board "28"]

1. d4 {[%clk 0:03:00]}  g6 {[%clk 0:02:44]} 2. c4 {[%clk 0:03:00]}  Bg7 {[%clk 0:02:45]} 3. e4 {[%clk 0:03:00]}  c5 {[%clk 0:02:45]} 4. d5 {[%clk 0:03:00]}  d6 {[%clk 0:02:46]} 5. Nc3 {[%clk 0:02:59]}  Nf6 {[%clk 0:02:46]} 6. Be2 {[%clk 0:03:00]}  O-O {[%clk 0:02:47]} 7. Be3 {[%clk 0:03:00]}  Nbd7 {[%clk 0:02:46]} 8. Nf3 {[%clk 0:02:58]}  a6 {[%clk 0:02:46]} 9. a4 {[%clk 0:02:55]}  Rb8 {[%clk 0:02:45]} 10. O-O {[%clk 0:02:54]}  Qb6 {[%clk 0:02:33]} 11. Qc2 {[%clk 0:02:52]}  Ne8 {[%clk 0:02:20]} 12. h4 {[%clk 0:02:48]}  Ne5 {[%clk 0:02:15]} 13. Nxe5 {[%clk 0:02:45]}  Bxe5 {[%clk 0:02:16]} 14. h5 {[%clk 0:02:42]}  Ng7 {[%clk 0:02:14]} 15. h6 {[%clk 0:02:40]}  Ne8 {[%clk 0:02:10]} 16. f4 {[%clk 0:02:40]}  Bd4 {[%clk 0:02:08]} 17. Qd2 {[%clk 0:02:31]}  f5 {[%clk 0:02:05]} 18. a5 {[%clk 0:02:25]}  Qa7 {[%clk 0:01:54]} 19. Rad1 {[%clk 0:02:22]}  fxe4 {[%clk 0:01:47]} 20. Nxe4 {[%clk 0:02:19]}  Bxe3+ {[%clk 0:01:41]} 21. Qxe3 {[%clk 0:02:20]}  b5 {[%clk 0:01:40]} 22. axb6 {[%clk 0:02:16]}  Rxb6 {[%clk 0:01:40]} 23. Qc3 {[%clk 0:02:00]}  Nf6 {[%clk 0:01:35]} 24. g4 {[%clk 0:01:39]}  Nxe4 {[%clk 0:01:32]} 25. Qg7# {[%clk 0:01:38]} 1-0


[Site "https://www.chess.com"]